fUST/lending_fUST_20241011
["ID","MTS","AMOUNT","RATE_DAILY","PERIOD"]
[340121939,1728630665671,-1399.61,0.00064931,120]
[340121940,1728630665681,-650.96,0.00064931,2]
[340121941,1728630665691,-500.0,0.00064931,120]
[340121942,1728630665701,-500.0,0.00064931,120]
[340121943,1728630665711,-1996.76,0.00064931,120]
[340121944,1728630665721,-1351.2,0.00064931,2]
[340121945,1728630665732,-2436.48,0.00064931,30]
[340121946,1728630665742,-500.0,0.00064931,120]
[340121947,1728630665752,-683.8,0.00064931,120]
[340121948,1728630665762,-500.0,0.00064931,120]
[340121949,1728630665772,-500.0,0.00064931,120]
[340121950,1728630665781,-1950.95,0.00064931,120]
[340121951,1728630665791,-5150.52,0.00064931,120]
[340121952,1728630665801,-500.0,0.00064931,120]
[340121953,1728630665811,-500.0,0.00064931,120]
[340121954,1728630665820,-500.0,0.00064931,120]
[340121955,1728630665829,-262.90364359,0.00064931,120]
[340121956,1728630665841,-669.94,0.00064931,120]
[340121957,1728630665853,-934.88,0.00064931,120]
[340121958,1728630665863,-500.0,0.00064931,120]
[340121959,1728630665873,-2257.7,0.00064931,30]
[340121960,1728630665883,-500.0,0.00064931,120]
[340121961,1728630665893,-500.0,0.00064931,120]
[340121962,1728630665902,-500.0,0.00064931,120]
[340121963,1728630665911,-500.0,0.00064931,120]
[340121964,1728630665921,-1878.48,0.00064931,120]
[340121965,1728630665931,-500.0,0.00064931,120]
[340121966,1728630665941,-500.0,0.00064931,120]
[340121967,1728630665952,-1334.39,0.00064931,120]
[340121968,1728630665962,-4210.56,0.00064931,120]
[340121969,1728630665971,-500.0,0.00064931,120]
[340121970,1728630665982,-813.36,0.00064931,120]
[340121971,1728630665992,-500.0,0.00064931,120]
[340121972,1728630666002,-500.0,0.00064931,120]
[340121973,1728630666013,-500.0,0.00064931,18]
[340121974,1728630666024,-1181.92,0.00064931,120]
[340121975,1728630666034,-689.37,0.00064931,120]
[340121976,1728630666044,-1220.56,0.00064931,120]
[340121977,1728630666055,-825.98,0.00064931,120]
[340121978,1728630666065,-500.0,0.00064931,120]
[340121979,1728630666075,-500.0,0.00064931,120]
[340121980,1728630666088,-748.85,0.00064931,120]
[340121981,1728630666099,-1358.21,0.00064931,120]
[340121982,1728630666109,-1932.27,0.00064931,120]
[340121983,1728630666120,-746.7,0.00064931,120]
[340121984,1728630666130,-690.38,0.00064931,120]
[340121985,1728630666140,-1417.72,0.00064931,120]
[340121986,1728630666152,-500.0,0.00064931,120]
[340121987,1728630666163,-2183.44,0.00064931,120]
[340121988,1728630666173,-558.97,0.00064931,120]
[340121989,1728630666184,-500.0,0.00064931,120]
[340121990,1728630666195,-1914.69,0.00064931,120]
[340121991,1728630666205,-2189.2,0.00064931,120]
[340121992,1728630666215,-1059.16,0.00064931,120]
[340121993,1728630666225,-525.68180727,0.00064931,120]
[340121994,1728630666236,-500.0,0.00064931,120]
[340121995,1728630666246,-500.0,0.00064931,120]
[340121996,1728630666255,-500.0,0.00064931,120]
[340121997,1728630666265,-500.0,0.00064931,30]
[340121998,1728630666274,-1638.11,0.00064931,120]
[340121999,1728630666283,-2460.61,0.00064931,120]
[340122000,1728630666293,-761.71,0.00064931,120]
[340122001,1728630666303,-500.0,0.00064931,2]
[340122002,1728630666312,-500.0,0.00064931,120]
[340122003,1728630666322,-3378.04,0.00064931,120]
[340122004,1728630666336,-2956.22,0.00064931,18]
[340122005,1728630666347,-500.0,0.00064931,30]
[340122006,1728630666357,-794.83,0.00064931,120]
[340122007,1728630666366,-300.25792892,0.00064931,120]
[340122008,1728630666376,-5039.97,0.00064931,120]
[340122009,1728630666386,-500.0,0.00064931,120]
[340122010,1728630666396,-841.85625411,0.00064931,120]
[340122011,1728630666406,-2873.27,0.00064931,120]
[340122012,1728630666416,-1000.0,0.00064931,120]
[340122013,1728630666426,-958.81,0.00064931,120]
[340122014,1728630666436,-500.0,0.00064931,120]
[340122015,1728630666446,-300.0,0.00064931,120]
[340122016,1728630666455,-777.64,0.00064931,120]
[340122017,1728630666465,-500.0,0.00064931,120]
[340122018,1728630666475,-522.81,0.00064931,120]
[340122019,1728630666485,-1000.0,0.00065,120]
[340122020,1728630666494,-1000.0,0.00065,120]
[340122021,1728630666504,-948.25570788,0.00065,120]
[340122022,1728630666514,-633.00281369,0.00065,120]
[340122023,1728630666524,-9506.32625571,0.00065,120]
[340122024,1728630666534,-500.0,0.00065,120]
[340122025,1728630666543,-700000.0,0.00065,120]
[340122026,1728630666553,-1000.0,0.00065,120]
[340122027,1728630666563,-1000.0,0.00065,120]
[340122028,1728630666573,-1000.0,0.00065,120]
[340122029,1728630666583,-54611.00749771,0.00065,120]
[340122030,1728630666593,-1000.0,0.00065,120]
[340122031,1728630666603,-845.14,0.00065205,120]
[340122032,1728630666614,-1317.67,0.00065205,120]
[340122033,1728630666624,-1566.82,0.00065205,120]
[340122034,1728630666710,-1563.53,0.00065205,7]
[340122035,1728630666720,-500.0,0.00065205,120]
[340122036,1728630666730,-500.0,0.00065205,120]
[340122037,1728630666742,-500.0,0.00065205,120]
[340122038,1728630666752,-1471.82,0.00065205,120]
[340122039,1728630666762,-457.14000081,0.00065205,120]
[340122040,1728630666772,-500.0,0.00065205,120]
[340122041,1728630666782,-534.44,0.00065205,120]
[340122042,1728630666791,-500.0,0.00065205,120]
[340122043,1728630666801,-681.48,0.00065205,120]
[340122044,1728630666811,-500.0,0.00065205,2]
[340122045,1728630666821,-500.0,0.00065205,120]
[340122046,1728630666831,-1399.61,0.00065205,120]
[340122047,1728630666841,-650.96,0.00065205,2]
[340122048,1728630666851,-500.0,0.00065205,120]
[340122049,1728630666861,-500.0,0.00065205,120]
[340122050,1728630666870,-1996.76,0.00065205,120]
[340122051,1728630666880,-1351.2,0.00065205,2]
[340122052,1728630666890,-2436.48,0.00065205,30]
[340122053,1728630666899,-500.0,0.00065205,120]
[340122054,1728630666909,-683.8,0.00065205,120]
[340122055,1728630666919,-500.0,0.00065205,120]
[340122056,1728630666929,-500.0,0.00065205,120]
[340122057,1728630666939,-1950.95,0.00065205,120]
[340122058,1728630666949,-5150.52,0.00065205,120]
[340122059,1728630666959,-500.0,0.00065205,120]
[340122060,1728630666969,-500.0,0.00065205,120]
[340122061,1728630666979,-500.0,0.00065205,120]
[340122062,1728630666989,-669.94,0.00065205,120]
[340122063,1728630666999,-934.88,0.00065205,120]
[340122064,1728630667009,-295.58536752,0.00065205,120]
[340122065,1728630667018,-2257.7,0.00065205,30]
[340122066,1728630667028,-500.0,0.00065205,120]
[340122067,1728630667038,-500.0,0.00065205,120]
[340122068,1728630667047,-500.0,0.00065205,120]
[340122069,1728630667056,-500.0,0.00065205,120]
[340122070,1728630667066,-1878.48,0.00065205,120]
[340122071,1728630667076,-500.0,0.00065205,120]
[340122072,1728630667087,-500.0,0.00065205,120]
[340122073,1728630667097,-1334.39,0.00065205,120]
[340122074,1728630667106,-4210.56,0.00065205,120]
[340122075,1728630667116,-508.57263405,0.00065205,120]
[340122076,1728630667126,-813.36,0.00065205,120]
[340122077,1728630667140,-500.0,0.00065205,120]
[340122078,1728630667150,-500.0,0.00065205,120]
[340122079,1728630667159,-500.0,0.00065205,18]
[340122080,1728630667169,-1181.92,0.00065205,120]
[340122081,1728630667179,-689.37,0.00065205,120]
[340122082,1728630667190,-1220.56,0.00065205,120]
[340122083,1728630667199,-825.98,0.00065205,120]
[340122084,1728630667211,-500.0,0.00065205,120]
[340122085,1728630667221,-500.0,0.00065205,120]
[340122086,1728630667230,-748.85,0.00065205,120]
[340122087,1728630667240,-1358.21,0.00065205,120]
[340122088,1728630667250,-1932.27,0.00065205,120]
[340122089,1728630667260,-746.7,0.00065205,120]
[340122090,1728630667270,-690.38,0.00065205,120]
[340122091,1728630667280,-1417.72,0.00065205,120]
[340122092,1728630667290,-574.36758399,0.00065205,120]
[340122093,1728630667299,-2183.44,0.00065205,120]
[340122094,1728630667309,-558.97,0.00065205,120]
[340122095,1728630667319,-500.0,0.00065205,120]
[340122096,1728630667328,-1914.69,0.00065205,120]
[340122097,1728630667344,-2189.2,0.00065205,120]
[340122098,1728630667354,-1059.16,0.00065205,120]
[340122099,1728630667364,-500.0,0.00065205,120]
[340122100,1728630667373,-500.0,0.00065205,120]
[340122101,1728630667382,-500.0,0.00065205,120]
[340122102,1728630667392,-500.0,0.00065205,30]
[340122103,1728630667402,-1638.11,0.00065205,120]
[340122104,1728630667413,-2460.61,0.00065205,120]
[340122105,1728630667422,-761.71,0.00065205,120]
[340122106,1728630667432,-500.0,0.00065205,2]
[340122107,1728630667441,-500.0,0.00065205,120]
[340122108,1728630667452,-3378.04,0.00065205,120]
[340122109,1728630667462,-2956.22,0.00065205,18]
[340122110,1728630667473,-500.0,0.00065205,30]
[340122111,1728630667482,-794.83,0.00065205,120]
[340122112,1728630667493,-5039.97,0.00065205,120]
[340122113,1728630667503,-500.0,0.00065205,120]
[340122114,1728630667513,-2873.27,0.00065205,120]
[340122115,1728630667523,-1000.0,0.00065205,120]
[340122116,1728630667533,-958.81,0.00065205,120]
[340122117,1728630667543,-500.0,0.00065205,120]
[340122118,1728630667553,-300.0,0.00065205,120]
[340122119,1728630667563,-777.64,0.00065205,120]
[340122120,1728630667573,-500.0,0.00065205,120]
[340122121,1728630667583,-522.81,0.00065205,120]
[340122122,1728630667592,-1000.0,0.00065263,120]
[340122123,1728630667602,-1119.34311268,0.00065283,7]
[340122124,1728630667613,-4031.23290325,0.00065325,120]
[340122125,1728630667623,-845.14,0.00065479,120]
[340122126,1728630667633,-1317.67,0.00065479,120]
[340122127,1728630667643,-1566.82,0.00065479,120]
[340122128,1728630667652,-1563.53,0.00065479,7]
[340122129,1728630667662,-500.0,0.00065479,120]
[340122130,1728630667672,-173.87514944,0.00065479,120]
[340122131,1728630667682,-527.27387634,0.00065479,120]
[340122132,1728630667692,-1471.82,0.00065479,120]
[340122133,1728630667702,-500.0,0.00065479,120]
[340122134,1728630667712,-534.44,0.00065479,120]
[340122135,1728630667722,-528.08139963,0.00065479,120]
[340122136,1728630667731,-681.48,0.00065479,120]
[340122137,1728630667742,-500.0,0.00065479,2]
[340122138,1728630667752,-500.0,0.00065479,120]
[340122139,1728630667761,-1399.61,0.00065479,120]
[340122140,1728630667771,-518.8327856,0.00065479,120]
[340122141,1728630667780,-650.96,0.00065479,2]
[340122142,1728630667790,-500.0,0.00065479,120]
[340122143,1728630667800,-1996.76,0.00065479,120]
[340122144,1728630667809,-1351.2,0.00065479,2]
[340122145,1728630667819,-2436.48,0.00065479,30]
[340122146,1728630667829,-500.0,0.00065479,120]
[340122147,1728630667839,-683.8,0.00065479,120]
[340122148,1728630667848,-500.0,0.00065479,120]
[340122149,1728630667858,-500.0,0.00065479,120]
[340122150,1728630667868,-1950.95,0.00065479,120]
[340122151,1728630667879,-5150.52,0.00065479,120]
[340122152,1728630667889,-500.0,0.00065479,120]
[340122153,1728630667900,-428.27201588,0.00065479,120]
[340122154,1728630667910,-500.0,0.00065479,120]
[340122155,1728630667921,-669.94,0.00065479,120]
[340122156,1728630667931,-934.88,0.00065479,120]
[340122157,1728630667941,-2257.7,0.00065479,30]
[340122158,1728630667951,-500.0,0.00065479,120]
[340122159,1728630667962,-594.36025785,0.00065479,120]
[340122160,1728630667972,-500.0,0.00065479,120]
[340122161,1728630667983,-500.0,0.00065479,120]
[340122162,1728630667993,-1878.48,0.00065479,120]
[340122163,1728630668003,-500.0,0.00065479,120]
[340122164,1728630668013,-500.0,0.00065479,120]
[340122165,1728630668023,-1334.39,0.00065479,120]
[340122166,1728630668033,-4210.56,0.00065479,120]
[340122167,1728630668043,-813.36,0.00065479,120]
[340122168,1728630668053,-500.0,0.00065479,120]
[340122169,1728630668062,-403.93098786,0.00065479,120]
[340122170,1728630668072,-500.0,0.00065479,18]
[340122171,1728630668081,-1181.92,0.00065479,120]
[340122172,1728630668091,-689.37,0.00065479,120]
[340122173,1728630668100,-1220.56,0.00065479,120]
[340122174,1728630668109,-825.98,0.00065479,120]
[340122175,1728630668119,-500.0,0.00065479,120]
[340122176,1728630668128,-500.0,0.00065479,120]
[340122177,1728630668143,-748.85,0.00065479,120]
[340122178,1728630668153,-1358.21,0.00065479,120]
[340122179,1728630668162,-1932.27,0.00065479,120]
[340122180,1728630668172,-746.7,0.00065479,120]
[340122181,1728630668183,-690.38,0.00065479,120]
[340122182,1728630668193,-1417.72,0.00065479,120]
[340122183,1728630668203,-2183.44,0.00065479,120]
[340122184,1728630668212,-558.97,0.00065479,120]
[340122185,1728630668222,-500.0,0.00065479,120]
[340122186,1728630668233,-1914.69,0.00065479,120]
[340122187,1728630668242,-2189.2,0.00065479,120]
[340122188,1728630668252,-1059.16,0.00065479,120]
[340122189,1728630668262,-500.0,0.00065479,120]
[340122190,1728630668271,-500.0,0.00065479,120]
[340122191,1728630668280,-500.0,0.00065479,120]
[340122192,1728630668290,-500.0,0.00065479,30]
[340122193,1728630668300,-1638.11,0.00065479,120]
[340122194,1728630668310,-2460.61,0.00065479,120]
[340122195,1728630668320,-761.71,0.00065479,120]
[340122196,1728630668329,-500.0,0.00065479,2]
[340122197,1728630668339,-500.0,0.00065479,120]
[340122198,1728630668349,-3378.04,0.00065479,120]
[340122199,1728630668359,-2956.22,0.00065479,18]
[340122200,1728630668368,-499.21,0.00065479,30]
[340122201,1728630668378,-794.83,0.00065479,120]
[340122202,1728630668389,-5039.97,0.00065479,120]
[340122203,1728630668398,-500.0,0.00065479,120]
[340122204,1728630668409,-2873.27,0.00065479,120]
[340122205,1728630668418,-1000.0,0.00065479,120]
[340122206,1728630668428,-958.81,0.00065479,120]
[340122207,1728630668437,-500.0,0.00065479,120]
[340122208,1728630668449,-305.01552077,0.00065479,120]
[340122209,1728630668458,-777.64,0.00065479,120]
[340122210,1728630668468,-500.0,0.00065479,120]
[340122211,1728630668479,-522.81,0.00065479,120]
[340122212,1728630668490,-1254.47075627,0.000655,120]
[340122213,1728630668501,-300.0,0.000655,62]
[340122214,1728630668511,-1000.0,0.00065737,120]
[340122215,1728630668520,-845.14,0.00065753,120]
[340122216,1728630668531,-1317.67,0.00065753,120]
[340122217,1728630668542,-1566.82,0.00065753,120]
[340122218,1728630668552,-1563.53,0.00065753,7]
[340122219,1728630668562,-500.0,0.00065753,120]
[340122220,1728630668573,-1471.82,0.00065753,120]
[340122221,1728630668584,-500.0,0.00065753,120]
[340122222,1728630668594,-534.44,0.00065753,120]
[340122223,1728630668604,-681.48,0.00065753,120]
[340122224,1728630668614,-500.0,0.00065753,2]
[340122225,1728630668623,-500.0,0.00065753,120]
[340122226,1728630668634,-1399.61,0.00065753,120]
[340122227,1728630668645,-650.96,0.00065753,2]
[340122228,1728630668654,-500.0,0.00065753,120]
[340122229,1728630668664,-1996.76,0.00065753,120]
[340122230,1728630668676,-1351.2,0.00065753,2]
[340122231,1728630668687,-2436.48,0.00065753,30]
[340122232,1728630668698,-683.8,0.00065753,120]
[340122233,1728630668709,-500.0,0.00065753,120]
[340122234,1728630668720,-500.0,0.00065753,120]
[340122235,1728630668731,-1950.95,0.00065753,120]
[340122236,1728630668742,-5150.52,0.00065753,120]
[340122237,1728630668753,-500.0,0.00065753,120]
[340122238,1728630668765,-272.69161986,0.00065753,120]
[340122239,1728630668776,-669.94,0.00065753,120]
[340122240,1728630668787,-934.88,0.00065753,120]
[340122241,1728630668871,-2257.7,0.00065753,30]
[340122242,1728630668881,-500.0,0.00065753,120]
[340122243,1728630668891,-500.0,0.00065753,120]
[340122244,1728630668900,-500.0,0.00065753,120]
[340122245,1728630668910,-1878.48,0.00065753,120]
[340122246,1728630668920,-500.0,0.00065753,120]
[340122247,1728630668930,-500.0,0.00065753,120]
[340122248,1728630668939,-1334.39,0.00065753,120]
[340122249,1728630668948,-4210.56,0.00065753,120]
[340122250,1728630668958,-813.36,0.00065753,120]
[340122251,1728630668967,-500.0,0.00065753,120]
[340122252,1728630668977,-500.0,0.00065753,18]
[340122253,1728630668987,-1181.92,0.00065753,120]
[340122254,1728630668997,-689.37,0.00065753,120]
[340122255,1728630669006,-1220.56,0.00065753,120]
[340122256,1728630669016,-825.98,0.00065753,120]
[340122257,1728630669026,-500.0,0.00065753,120]
[340122258,1728630669035,-500.0,0.00065753,120]
[340122259,1728630669045,-748.85,0.00065753,120]
[340122260,1728630669056,-1358.21,0.00065753,120]
[340122261,1728630669067,-1932.27,0.00065753,120]
[340122262,1728630669077,-746.7,0.00065753,120]
[340122263,1728630669088,-690.38,0.00065753,120]
[340122264,1728630669097,-1417.72,0.00065753,120]
[340122265,1728630669107,-2183.44,0.00065753,120]
[340122266,1728630669116,-558.97,0.00065753,120]
[340122267,1728630669126,-500.0,0.00065753,120]
[340122268,1728630669139,-1914.69,0.00065753,120]
[340122269,1728630669149,-2189.2,0.00065753,120]
[340122270,1728630669158,-1059.16,0.00065753,120]
[340122271,1728630669168,-500.0,0.00065753,120]
[340122272,1728630669179,-500.0,0.00065753,120]
[340122273,1728630669189,-500.0,0.00065753,120]
[340122274,1728630669199,-500.0,0.00065753,30]
[340122275,1728630669210,-1638.11,0.00065753,120]
[340122276,1728630669223,-2460.61,0.00065753,120]
[340122277,1728630669234,-761.71,0.00065753,120]
[340122278,1728630669244,-500.0,0.00065753,2]
[340122279,1728630669254,-500.0,0.00065753,120]
[340122280,1728630669266,-3378.04,0.00065753,120]
[340122281,1728630669276,-2956.22,0.00065753,18]
[340122282,1728630669285,-794.83,0.00065753,120]
[340122283,1728630669295,-5039.97,0.00065753,120]
[340122284,1728630669304,-500.0,0.00065753,120]
[340122285,1728630669314,-500.0,0.00065753,120]
[340122286,1728630669326,-2873.27,0.00065753,120]
[340122287,1728630669337,-601.4073684,0.00065753,120]
[340122288,1728630669346,-958.81,0.00065753,120]
[340122289,1728630669356,-500.0,0.00065753,120]
[340122290,1728630669365,-237.46425826,0.00065753,120]
[340122291,1728630669376,-777.64,0.00065753,120]
[340122292,1728630669386,-5226.34535706,0.00065753,120]
[340122293,1728630669396,-500.0,0.00065753,120]
[340122294,1728630669405,-522.81,0.00065753,120]
[340122295,1728630669415,-520.80039716,0.00065753,120]
[340122296,1728630669424,-2000.0,0.00066,120]
[340122297,1728630669435,-2000.0,0.00066,120]
[340122298,1728630669444,-2000.0,0.00066,120]
[340122299,1728630669454,-842.83220504,0.00066,120]
[340122300,1728630669463,-2000.0,0.00066,120]
[340122301,1728630669473,-2000.0,0.00066,120]
[340122302,1728630669482,-2000.0,0.00066,120]
[340122303,1728630669492,-2000.0,0.00066,120]
[340122304,1728630669501,-2000.0,0.00066,120]
[340122305,1728630669510,-2000.0,0.00066,120]
[340122306,1728630669520,-2000.0,0.00066,120]
[340122307,1728630669530,-2000.0,0.00066,120]
[340122308,1728630669540,-2000.0,0.00066,120]
[340122309,1728630669549,-2000.0,0.00066,120]
[340122310,1728630669559,-2000.0,0.00066,120]
[340122311,1728630669568,-2000.0,0.00066,120]
[340122312,1728630669577,-2000.0,0.00066,120]
[340122313,1728630669587,-2000.0,0.00066,120]
[340122314,1728630669596,-2000.0,0.00066,120]
[340122315,1728630669606,-189.42209095,0.00066,120]
[340122316,1728630669616,-169.54355633,0.00066,120]
[340122317,1728630669625,-1943.56673579,0.00066,120]
[340122318,1728630669636,-500.0,0.00066,120]
[340122319,1728630669646,-1000.0,0.00066,120]
[340122320,1728630669656,-1000.0,0.00066,120]
[340122321,1728630669667,-1000.0,0.00066,120]
[340122322,1728630669677,-1000.0,0.00066,120]
[340122323,1728630669687,-845.14,0.00066027,120]
[340122324,1728630669698,-1317.67,0.00066027,120]
[340122325,1728630669709,-1566.82,0.00066027,120]
[340122326,1728630669719,-1563.53,0.00066027,7]
[340122327,1728630669731,-500.0,0.00066027,120]
[340122328,1728630669742,-1471.82,0.00066027,120]
[340122329,1728630669752,-500.0,0.00066027,120]
[340122330,1728630669763,-534.44,0.00066027,120]
[340122331,1728630669773,-681.48,0.00066027,120]
[340122332,1728630669782,-500.0,0.00066027,2]
[340122333,1728630669793,-500.0,0.00066027,120]
[340122334,1728630669803,-1399.61,0.00066027,120]
[340122335,1728630669814,-650.96,0.00066027,2]
[340122336,1728630669824,-500.0,0.00066027,120]
[340122337,1728630669834,-1996.76,0.00066027,120]
[340122338,1728630669844,-1351.2,0.00066027,2]
[340122339,1728630669854,-2436.48,0.00066027,30]
[340122340,1728630669864,-683.8,0.00066027,120]
[340122341,1728630669880,-500.0,0.00066027,120]
[340122342,1728630669889,-500.0,0.00066027,120]
[340122343,1728630669900,-1950.95,0.00066027,120]
[340122344,1728630669911,-5150.52,0.00066027,120]
[340122345,1728630669920,-500.0,0.00066027,120]
[340122346,1728630669929,-669.94,0.00066027,120]
[340122347,1728630669939,-934.88,0.00066027,120]
[340122348,1728630669948,-2257.7,0.00066027,30]
[340122349,1728630669958,-500.0,0.00066027,120]
[340122350,1728630669967,-500.0,0.00066027,120]
[340122351,1728630669976,-368.02752171,0.00066027,120]
[340122352,1728630669986,-1878.48,0.00066027,120]
[340122353,1728630669995,-500.0,0.00066027,120]
[340122354,1728630670005,-194.19284636,0.00066027,120]
[340122355,1728630670014,-1334.39,0.00066027,120]
[340122356,1728630670023,-4210.56,0.00066027,120]
[340122357,1728630670033,-813.36,0.00066027,120]
[340122358,1728630670042,-500.0,0.00066027,120]
[340122359,1728630670052,-500.0,0.00066027,18]
[340122360,1728630670061,-1181.92,0.00066027,120]
[340122361,1728630670070,-689.37,0.00066027,120]
[340122362,1728630670079,-1220.56,0.00066027,120]
[340122363,1728630670090,-825.98,0.00066027,120]
[340122364,1728630670099,-500.0,0.00066027,120]
[340122365,1728630670108,-500.0,0.00066027,120]
[340122366,1728630670117,-748.85,0.00066027,120]
[340122367,1728630670126,-1358.21,0.00066027,120]
[340122368,1728630670137,-1932.27,0.00066027,120]
[340122369,1728630670148,-746.7,0.00066027,120]
[340122370,1728630670157,-690.38,0.00066027,120]
[340122371,1728630670169,-1417.72,0.00066027,120]
[340122372,1728630670178,-2183.44,0.00066027,120]
[340122373,1728630670188,-558.97,0.00066027,120]
[340122374,1728630670197,-500.0,0.00066027,120]
[340122375,1728630670207,-1914.69,0.00066027,120]
[340122376,1728630670216,-2189.2,0.00066027,120]
[340122377,1728630670225,-1059.16,0.00066027,120]
[340122378,1728630670235,-500.0,0.00066027,120]
[340122379,1728630670245,-500.0,0.00066027,120]
[340122380,1728630670254,-500.0,0.00066027,120]
[340122381,1728630670263,-500.0,0.00066027,30]
[340122382,1728630670272,-1638.11,0.00066027,120]
[340122383,1728630670281,-2460.61,0.00066027,120]
[340122384,1728630670290,-761.71,0.00066027,120]
[340122385,1728630670300,-500.0,0.00066027,2]
[340122386,1728630670309,-353.73085253,0.00066027,120]
[340122387,1728630670319,-3378.04,0.00066027,120]
[340122388,1728630670328,-2956.22,0.00066027,18]
[340122389,1728630670338,-794.83,0.00066027,120]
[340122390,1728630670348,-5039.97,0.00066027,120]
[340122391,1728630670358,-479.0653331,0.00066027,120]
[340122392,1728630670367,-2873.27,0.00066027,120]
[340122393,1728630670377,-958.81,0.00066027,120]
[340122394,1728630670386,-777.64,0.00066027,120]
[340122395,1728630670396,-500.0,0.00066027,120]
[340122396,1728630670405,-522.81,0.00066027,120]
[340122397,1728630670415,-386.0,0.0006603,120]
[340122398,1728630670424,-1000.0,0.00066211,120]
[340122399,1728630670434,-845.14,0.00066301,120]
[340122400,1728630670443,-1317.67,0.00066301,120]
[340122401,1728630670453,-1566.82,0.00066301,120]
[340122402,1728630670462,-1563.53,0.00066301,7]
[340122403,1728630670472,-500.0,0.00066301,120]
[340122404,1728630670482,-1471.82,0.00066301,120]
[340122405,1728630670491,-500.0,0.00066301,120]
[340122406,1728630670501,-534.44,0.00066301,120]
[340122407,1728630670510,-681.48,0.00066301,120]
[340122408,1728630670519,-500.0,0.00066301,2]
[340122409,1728630670529,-500.0,0.00066301,120]
[340122410,1728630670538,-1399.61,0.00066301,120]
[340122411,1728630670547,-650.96,0.00066301,2]
[340122412,1728630670557,-500.0,0.00066301,120]
[340122413,1728630670566,-1996.76,0.00066301,120]
[340122414,1728630670575,-1351.2,0.00066301,2]
[340122415,1728630670586,-2436.48,0.00066301,30]
[340122416,1728630670595,-683.8,0.00066301,120]
[340122417,1728630670604,-500.0,0.00066301,120]
[340122418,1728630670613,-500.0,0.00066301,120]
[340122419,1728630670623,-1950.95,0.00066301,120]
[340122420,1728630670632,-5150.52,0.00066301,120]
[340122421,1728630670641,-293.64807362,0.00066301,120]
[340122422,1728630670650,-669.94,0.00066301,120]
[340122423,1728630670659,-934.88,0.00066301,120]
[340122424,1728630670672,-2257.7,0.00066301,30]
[340122425,1728630670682,-500.0,0.00066301,120]
[340122426,1728630670691,-500.0,0.00066301,120]
[340122427,1728630670701,-1878.48,0.00066301,120]
[340122428,1728630670711,-325.94584803,0.00066301,120]
[340122429,1728630670720,-1334.39,0.00066301,120]
[340122430,1728630670730,-4210.56,0.00066301,120]
[340122431,1728630670823,-813.36,0.00066301,120]
[340122432,1728630670834,-187.39882643,0.00066301,120]
[340122433,1728630670851,-500.0,0.00066301,18]
[340122434,1728630670860,-1181.92,0.00066301,120]
[340122435,1728630670870,-689.37,0.00066301,120]
[340122436,1728630670879,-1220.56,0.00066301,120]
[340122437,1728630670890,-825.98,0.00066301,120]
[340122438,1728630670901,-500.0,0.00066301,120]